fUSD/lending_fUSD_20240427
["ID","MTS","AMOUNT","RATE_DAILY","PERIOD"]
[323745952,1714230643202,-500.0,0.00010958,2]
[323745953,1714230643212,-500.0,0.00010958,2]
[323745954,1714230643222,-371.83751273,0.00010958,2]
[323745955,1714230643231,-692.69,0.00010958,2]
[323745956,1714230643241,-500.0,0.00010958,2]
[323745957,1714230643252,-500.0,0.00010958,2]
[323745958,1714230643262,-500.0,0.00010958,2]
[323745959,1714230643271,-204.31908182,0.00010958,2]
[323745960,1714230643281,-500.0,0.00010958,2]
[323745961,1714230643291,-500.0,0.00010958,2]
[323745962,1714230643300,-500.0,0.00010958,2]
[323745963,1714230643309,-500.0,0.00010958,2]
[323745964,1714230643318,-653.81,0.00010958,2]
[323745965,1714230643328,-500.0,0.00010958,2]
[323745966,1714230643338,-256.6,0.00010958,2]
[323745967,1714230643347,-500.0,0.00010958,2]
[323745968,1714230643357,-500.0,0.00010958,2]
[323745969,1714230643367,-534.19,0.00010958,2]
[323745970,1714230643377,-500.0,0.00010958,2]
[323745971,1714230643387,-1092.4,0.00010958,2]
[323745973,1714230643396,-500.0,0.00010958,2]
[323745975,1714230643406,-500.0,0.00010958,2]
[323745976,1714230643415,-500.0,0.00010958,2]
[323745977,1714230643426,-500.0,0.00010958,2]
[323745978,1714230643435,-500.0,0.00010958,2]
[323745979,1714230643445,-504.48129969,0.00010958,2]
[323745980,1714230643454,-500.0,0.00010958,2]
[323745982,1714230643463,-500.0,0.00010958,2]
[323745984,1714230643473,-500.0,0.00010958,2]
[323745986,1714230643483,-500.0,0.00010958,2]
[323745988,1714230643492,-500.0,0.00010958,2]
[323745989,1714230643501,-500.0,0.00010958,2]
[323745990,1714230643510,-656.29,0.00010958,2]
[323745991,1714230643519,-500.0,0.00010958,2]
[323745992,1714230643528,-1207.72,0.00010958,2]
[323745993,1714230643538,-504.72,0.00010958,2]
[323745994,1714230643547,-500.0,0.00010958,2]
[323745995,1714230643557,-500.0,0.00010958,2]
[323745996,1714230643567,-500.0,0.00010958,2]
[323745997,1714230643576,-500.0,0.00010958,2]
[323745998,1714230643585,-500.0,0.00010958,2]
[323745999,1714230643594,-500.0,0.00010958,2]
[323746000,1714230643603,-500.0,0.00010958,2]
[323746001,1714230643612,-500.0,0.00010958,2]
[323746002,1714230643622,-500.0,0.00010958,2]
[323746003,1714230643631,-500.0,0.00010958,2]
[323746004,1714230643641,-277.016221,0.00010958,2]
[323746005,1714230643650,-500.0,0.00010958,2]
[323746006,1714230643659,-500.0,0.00010958,2]
[323746007,1714230643669,-712.9,0.00010958,2]
[323746008,1714230643679,-1087.08,0.00010958,2]
[323746009,1714230643689,-500.0,0.00010958,2]
[323746010,1714230643709,-226.2,0.00010958,2]
[323746011,1714230643723,-500.0,0.00010958,2]
[323746012,1714230643733,-931.47,0.00010958,2]
[323746013,1714230643742,-500.0,0.00010958,2]
[323746014,1714230643752,-271.15125276,0.00010958,2]
[323746015,1714230643762,-500.0,0.00010958,2]
[323746016,1714230643771,-500.0,0.00010958,2]
[323746017,1714230643782,-500.0,0.00010958,2]
[323746018,1714230643793,-778.48,0.00010958,2]
[323746019,1714230643803,-730.82,0.00010958,2]
[323746020,1714230643813,-434.78077671,0.00010958,2]
[323746021,1714230643824,-500.0,0.00010958,2]
[323746022,1714230643834,-500.0,0.00010958,2]
[323746023,1714230643844,-500.0,0.00010958,2]
[323746024,1714230643855,-500.0,0.00010958,2]
[323746025,1714230643866,-1406.33,0.00010958,2]
[323746026,1714230643875,-500.0,0.00010958,2]
[323746027,1714230643884,-722.11,0.00010958,2]
[323746028,1714230643896,-500.0,0.00010958,2]
[323746029,1714230643907,-500.0,0.00010958,2]
[323746030,1714230643918,-500.0,0.00010958,2]
[323746031,1714230643928,-500.0,0.00010958,2]
[323746032,1714230643938,-697.76,0.00010958,2]
[323746033,1714230643947,-500.0,0.00010958,2]
[323746034,1714230643957,-500.0,0.00010958,2]
[323746035,1714230643966,-1623.27,0.00010958,2]
[323746036,1714230643975,-500.0,0.00010958,2]
[323746037,1714230643985,-2320.26,0.00010958,2]
[323746038,1714230643996,-1761.53,0.00010958,2]
[323746039,1714230644007,-979.87,0.00010958,2]
[323746040,1714230644017,-724.44,0.00010958,2]
[323746041,1714230644026,-1050.6,0.00010958,2]
[323746042,1714230644035,-500.0,0.00010958,2]
[323746043,1714230644045,-4672.72,0.00010958,2]
[323746044,1714230644055,-9176.71,0.00010958,2]
[323746045,1714230644065,-435.81287952,0.00010958,2]
[323746046,1714230644075,-1176.68,0.00010958,2]
[323746047,1714230644085,-500.0,0.00010958,2]
[323746048,1714230644095,-817.41,0.00010958,2]
[323746049,1714230644106,-1475.41,0.00010958,2]
[323746050,1714230644116,-1236.01,0.00010958,2]
[323746051,1714230644127,-791.67,0.00010958,2]
[323746052,1714230644136,-707.05,0.00010958,2]
[323746053,1714230644146,-1383.43,0.00010958,2]
[323746054,1714230644157,-500.0,0.00010958,2]
[323746055,1714230644166,-2228.64,0.00010958,2]
[323746056,1714230644177,-2195.95,0.00010958,2]
[323746057,1714230644186,-500.0,0.00010958,2]
[323746058,1714230644196,-500.0,0.00010958,2]
[323746059,1714230644206,-500.0,0.00010958,2]
[323746060,1714230644217,-2042.29,0.00010958,2]
[323746061,1714230644227,-518.43,0.00010958,2]
[323746062,1714230644236,-628.27,0.00010958,2]
[323746063,1714230644246,-843.11,0.00010958,2]
[323746064,1714230644256,-1155.57,0.00010958,2]
[323746065,1714230644266,-500.0,0.00010958,2]
[323746066,1714230644275,-500.0,0.00010958,2]
[323746067,1714230644285,-500.0,0.00010958,2]
[323746068,1714230644295,-500.0,0.00010958,2]
[323746069,1714230644304,-1620.07,0.00010958,2]
[323746070,1714230644494,-500.0,0.00010958,2]
[323746071,1714230644505,-1392.69,0.00010958,2]
[323746072,1714230644516,-1066.54,0.00010958,2]
[323746073,1714230644527,-500.0,0.00010958,2]
[323746074,1714230644536,-500.0,0.00010958,2]
[323746075,1714230644545,-18683.41,0.00010958,2]
[323746076,1714230644556,-500.0,0.00010958,2]
[323746077,1714230644566,-657.73,0.00010958,2]
[323746078,1714230644575,-1770.89,0.00010958,2]
[323746079,1714230644585,-11354.83,0.00010958,2]
[323746080,1714230644596,-1810.24,0.00010958,2]
[323746081,1714230644605,-500.0,0.00010958,2]
[323746082,1714230644615,-500.0,0.00010958,2]
[323746083,1714230644624,-397.28,0.00010958,2]
[323746084,1714230644635,-1007.14,0.00010958,2]
[323746085,1714230644646,-4074.68,0.00010958,2]
[323746086,1714230644655,-500.15,0.00010958,2]
[323746087,1714230644664,-1296.88,0.00010958,2]
[323746088,1714230644675,-1085.11,0.00010958,2]
[323746089,1714230644684,-1439.29,0.00010958,2]
[323746090,1714230644697,-667.96,0.00010958,2]
[323746091,1714230644706,-1211.82,0.00010958,2]
[323746092,1714230644715,-983.47,0.00010958,2]
[323746093,1714230644725,-1353.15,0.00010958,2]
[323746094,1714230644735,-799.85,0.00010958,2]
[323746095,1714230644744,-500.0,0.00010958,2]
[323746096,1714230644755,-915.34,0.00010958,2]
[323746097,1714230644765,-1912.23,0.00010958,2]
[323746098,1714230644777,-500.0,0.00010958,2]
[323746099,1714230644787,-1318.97,0.00010958,2]
[323746100,1714230644797,-500.0,0.00010958,2]
[323746101,1714230644808,-500.0,0.00010958,2]
[323746102,1714230644818,-2307.26,0.00010958,2]
[323746103,1714230644827,-933.61,0.00010958,2]
[323746104,1714230644838,-1382.89,0.00010958,2]
[323746105,1714230644847,-1574.07,0.00010958,2]
[323746106,1714230644858,-850.56,0.00010958,2]
[323746107,1714230644867,-1398.74,0.00010958,2]
[323746108,1714230644877,-1813.16,0.00010958,2]
[323746109,1714230644886,-608.85,0.00010958,2]
[323746110,1714230644895,-500.0,0.00010958,2]
[323746111,1714230644905,-1980.53,0.00010958,2]
[323746112,1714230644915,-2154.5,0.00010958,2]
[323746113,1714230644924,-10803.44,0.00010958,2]
[323746114,1714230644935,-3136.09,0.00010958,2]
[323746115,1714230644944,-500.0,0.00010958,2]
[323746116,1714230644953,-684.58,0.00010958,2]
[323746117,1714230644962,-1295.3,0.00010958,2]
[323746118,1714230644971,-500.0,0.00010958,2]
[323746119,1714230644981,-545.01,0.00010958,2]
[323746120,1714230644990,-2585.82,0.00010958,2]
[323746121,1714230644999,-1604.79,0.00010958,2]
[323746122,1714230645009,-743.91,0.00010958,2]
[323746123,1714230645018,-6377.74,0.00010958,2]
[323746124,1714230645027,-500.0,0.00010958,2]
[323746125,1714230645037,-1229.58,0.00010958,2]
[323746126,1714230645047,-1758.99,0.00010958,2]
[323746127,1714230645057,-1256.81,0.00010958,2]
[323746128,1714230645066,-967.73,0.00010958,2]
[323746129,1714230645076,-406.7397575,0.00010958,2]
[323746130,1714230645085,-588.51,0.00010958,2]
[323746131,1714230645095,-1574.28,0.00010958,2]
[323746132,1714230645105,-1132.5,0.00010958,2]
[323746133,1714230645114,-1877.73,0.00010958,2]
[323746134,1714230645123,-507.43,0.00010958,2]
[323746135,1714230645133,-500.0,0.00010958,2]
[323746136,1714230645143,-500.0,0.00010958,2]
[323746137,1714230645153,-4399.9,0.00010958,2]
[323746138,1714230645162,-838.04,0.00010958,2]
[323746139,1714230645172,-861.63,0.00010958,2]
[323746140,1714230645182,-1739.09,0.00010958,2]
[323746141,1714230645192,-1883.64,0.00010958,2]
[323746142,1714230645201,-1319.0,0.00010958,2]
[323746143,1714230645211,-2418.3,0.00010958,2]
[323746144,1714230645221,-2583.81,0.00010958,2]
[323746145,1714230645231,-2156.66,0.00010958,2]
[323746146,1714230645241,-527.75,0.00010958,2]
[323746147,1714230645251,-1020.37,0.00010958,2]
[323746148,1714230645260,-3429.44,0.00010958,2]
[323746149,1714230645270,-1826.84,0.00010958,2]
[323746150,1714230645280,-4202.85,0.00010958,2]
[323746151,1714230645289,-1126.94,0.00010958,2]
[323746152,1714230645298,-1420.63,0.00010958,2]
[323746153,1714230645308,-500.0,0.00010958,2]
[323746154,1714230645317,-523.36,0.00010958,2]
[323746155,1714230645326,-882.0,0.00010958,2]
[323746156,1714230645336,-500.0,0.00010958,2]
[323746157,1714230645345,-2088.61,0.00010958,2]
[323746158,1714230645355,-1382.88,0.00010958,2]
[323746159,1714230645364,-1041.67,0.00010958,2]
[323746160,1714230645374,-602.95,0.00010958,2]
[323746161,1714230645384,-828.15,0.00010958,2]
[323746162,1714230645393,-500.0,0.00010958,2]
[323746163,1714230645402,-1087.01,0.00010958,2]
[323746164,1714230645412,-737.37,0.00010958,2]
[323746165,1714230645421,-1927.11,0.00010958,2]
[323746166,1714230645430,-2105.2,0.00010958,2]
[323746167,1714230645439,-559.88,0.00010958,2]
[323746168,1714230645449,-1681.79,0.00010958,2]
[323746169,1714230645458,-1025.04,0.00010958,2]
[323746170,1714230645467,-500.0,0.00010958,2]
[323746171,1714230645476,-1134.39,0.00010958,2]
[323746172,1714230645486,-1609.84,0.00010958,2]
[323746173,1714230645495,-500.0,0.00010958,2]
[323746174,1714230645504,-500.0,0.00010958,2]
[323746175,1714230645513,-500.0,0.00010958,2]
[323746177,1714230645522,-967.4,0.00010958,2]
[323746178,1714230645531,-1885.84,0.00010958,2]
[323746179,1714230645540,-2533.71,0.00010958,2]
[323746180,1714230645549,-500.0,0.00010958,2]
[323746181,1714230645558,-661.26,0.00010958,2]
[323746182,1714230645567,-500.0,0.00010958,2]
[323746183,1714230645576,-500.0,0.00010958,2]
[323746184,1714230645585,-500.0,0.00010958,2]
[323746185,1714230645594,-1894.52,0.00010958,2]
[323746186,1714230645603,-500.0,0.00010958,2]
[323746187,1714230645613,-500.0,0.00010958,2]
[323746188,1714230645622,-668.86,0.00010958,2]
[323746190,1714230645632,-500.0,0.00010958,2]
[323746191,1714230645641,-533.54,0.00010958,2]
[323746192,1714230645650,-611.87,0.00010958,2]
[323746193,1714230645659,-500.0,0.00010958,2]
[323746194,1714230645668,-500.0,0.00010958,2]
[323746195,1714230645677,-500.0,0.00010958,2]
[323746196,1714230645687,-1486.52,0.00010958,2]
[323746197,1714230645698,-1109.78,0.00010958,2]
[323746198,1714230645708,-1784.86,0.00010958,2]
[323746199,1714230645717,-1933.46,0.00010958,2]
[323746200,1714230645726,-620.52,0.00010958,2]
[323746201,1714230645735,-1171.88,0.00010958,2]
[323746202,1714230645745,-500.0,0.00010958,2]
[323746203,1714230645754,-500.0,0.00010958,2]
[323746204,1714230645763,-1325.43,0.00010958,2]
[323746205,1714230645772,-1319.77,0.00010958,2]
[323746206,1714230645782,-500.0,0.00010958,2]
[323746208,1714230645791,-2000.0,0.00010959,3]
[323746209,1714230645800,-9529.59999999,0.00011,2]
[323746211,1714230645809,-5061.0,0.00011,2]
[323746213,1714230645818,-400.0,0.00011,2]
[323746214,1714230645827,-2750.0,0.00011,3]
[323746216,1714230645837,-152.19,0.00011012,2]
[323746218,1714230645846,-8458.76,0.00011231,2]
[323746220,1714230645855,-621.61,0.00011231,2]
[323746222,1714230645865,-2825.7,0.00011231,2]
[323746223,1714230645874,-500.0,0.00011231,2]
[323746224,1714230645883,-868.49,0.00011231,2]
[323746225,1714230645892,-500.0,0.00011231,2]
[323746226,1714230645902,-500.0,0.00011232,2]
[323746227,1714230645911,-500.0,0.00011232,2]
[323746228,1714230645922,-500.0,0.00011232,2]
[323746229,1714230645932,-500.0,0.00011232,2]
[323746230,1714230645941,-500.0,0.00011232,2]
[323746231,1714230645950,-500.0,0.00011232,2]
[323746232,1714230645960,-500.0,0.00011232,2]
[323746233,1714230645970,-559.12,0.00011232,2]
[323746234,1714230645979,-500.0,0.00011232,2]
[323746235,1714230645989,-196.37621441,0.00011232,2]
[323746236,1714230645998,-500.0,0.00011232,2]
[323746237,1714230646008,-794.13,0.00011232,2]
[323746238,1714230646018,-683.77,0.00011232,2]
[323746239,1714230646028,-500.0,0.00011232,2]
[323746240,1714230646037,-500.0,0.00011232,2]
[323746241,1714230646046,-626.82,0.00011232,2]
[323746242,1714230646056,-500.0,0.00011232,2]
[323746243,1714230646065,-500.0,0.00011232,2]
[323746244,1714230646073,-500.0,0.00011232,2]
[323746245,1714230646083,-500.0,0.00011232,2]
[323746246,1714230646092,-1052.41,0.00011232,2]
[323746247,1714230646101,-500.0,0.00011232,2]
[323746248,1714230646110,-276.17933287,0.00011232,2]
[323746249,1714230646120,-576.67,0.00011232,2]
[323746250,1714230646129,-500.0,0.00011232,2]
[323746251,1714230646138,-1210.13,0.00011232,2]
[323746252,1714230646148,-500.0,0.00011232,2]
[323746253,1714230646157,-541.82,0.00011232,2]
[323746254,1714230646166,-652.65,0.00011232,2]
[323746255,1714230646176,-500.0,0.00011232,2]
[323746256,1714230646186,-522.21,0.00011232,2]
[323746257,1714230646195,-500.0,0.00011232,2]
[323746258,1714230646205,-500.0,0.00011232,2]
[323746259,1714230646214,-500.0,0.00011232,2]
[323746261,1714230646223,-500.0,0.00011232,2]
[323746263,1714230646233,-500.0,0.00011232,2]
[323746264,1714230646242,-1089.57,0.00011232,2]
[323746265,1714230646251,-500.0,0.00011232,2]
[323746266,1714230646260,-500.0,0.00011232,2]
[323746267,1714230646270,-721.72,0.00011232,2]
[323746268,1714230646280,-500.0,0.00011232,2]
[323746269,1714230646289,-705.65,0.00011232,2]
[323746270,1714230646299,-500.0,0.00011232,2]
[323746271,1714230646308,-500.0,0.00011232,2]
[323746272,1714230646317,-500.0,0.00011232,2]
[323746273,1714230646326,-564.41,0.00011232,2]
[323746274,1714230646335,-500.0,0.00011232,2]
[323746275,1714230646344,-500.0,0.00011232,2]
[323746276,1714230646354,-982.23,0.00011232,2]
[323746277,1714230646363,-524.59915097,0.00011232,2]
[323746278,1714230646372,-500.0,0.00011232,2]
[323746279,1714230646381,-936.71,0.00011232,2]
[323746280,1714230646390,-500.0,0.00011232,2]
[323746281,1714230646399,-500.0,0.00011232,2]
[323746282,1714230646408,-500.0,0.00011232,2]
[323746283,1714230646418,-530.67,0.00011232,2]
[323746284,1714230646427,-500.0,0.00011232,2]
[323746285,1714230646438,-500.0,0.00011232,2]
[323746286,1714230646447,-500.0,0.00011232,2]
[323746287,1714230646456,-692.69,0.00011232,2]
[323746288,1714230646466,-500.0,0.00011232,2]
[323746289,1714230646475,-500.0,0.00011232,2]
[323746290,1714230646484,-500.0,0.00011232,2]
[323746291,1714230646493,-500.0,0.00011232,2]
[323746292,1714230646502,-500.0,0.00011232,2]
[323746293,1714230646511,-653.81,0.00011232,2]
[323746294,1714230646520,-500.0,0.00011232,2]
[323746295,1714230646529,-500.0,0.00011232,2]
[323746296,1714230646538,-534.19,0.00011232,2]
[323746297,1714230646548,-500.0,0.00011232,2]
[323746298,1714230646557,-1092.4,0.00011232,2]
[323746299,1714230646566,-500.0,0.00011232,2]
[323746300,1714230646575,-500.0,0.00011232,2]
[323746301,1714230646584,-500.0,0.00011232,2]
[323746302,1714230646593,-500.0,0.00011232,2]
[323746303,1714230646602,-500.0,0.00011232,2]
[323746304,1714230646612,-500.0,0.00011232,2]
[323746305,1714230646620,-500.0,0.00011232,2]
[323746306,1714230646630,-656.29,0.00011232,2]
[323746307,1714230646639,-500.0,0.00011232,2]
[323746308,1714230646648,-1207.72,0.00011232,2]
[323746309,1714230646658,-500.0,0.00011232,2]
[323746310,1714230646667,-504.72,0.00011232,2]
[323746311,1714230646676,-500.0,0.00011232,2]
[323746312,1714230646687,-500.0,0.00011232,2]
[323746313,1714230646699,-500.0,0.00011232,2]
[323746314,1714230646709,-500.0,0.00011232,2]
[323746315,1714230646718,-500.0,0.00011232,2]
[323746316,1714230646727,-500.0,0.00011232,2]
[323746317,1714230646738,-500.0,0.00011232,2]
[323746318,1714230646747,-500.0,0.00011232,2]
[323746319,1714230646756,-500.0,0.00011232,2]
[323746320,1714230646766,-500.0,0.00011232,2]
[323746321,1714230646775,-712.9,0.00011232,2]
[323746322,1714230646784,-1087.08,0.00011232,2]
[323746323,1714230646794,-500.0,0.00011232,2]
[323746324,1714230646803,-500.0,0.00011232,2]
[323746325,1714230646812,-931.47,0.00011232,2]
[323746326,1714230646821,-500.0,0.00011232,2]
[323746327,1714230646830,-500.0,0.00011232,2]
[323746328,1714230646839,-500.0,0.00011232,2]
[323746329,1714230646847,-500.0,0.00011232,2]
[323746330,1714230646856,-778.48,0.00011232,2]
[323746331,1714230646865,-730.82,0.00011232,2]
[323746332,1714230646874,-500.0,0.00011232,2]
[323746333,1714230646883,-500.0,0.00011232,2]
[323746334,1714230646892,-500.0,0.00011232,2]
[323746335,1714230646901,-1406.33,0.00011232,2]
[323746336,1714230646910,-500.0,0.00011232,2]
[323746337,1714230646919,-722.11,0.00011232,2]
[323746338,1714230646928,-500.0,0.00011232,2]
[323746339,1714230646938,-500.0,0.00011232,2]
[323746340,1714230646948,-500.0,0.00011232,2]
[323746341,1714230646957,-697.76,0.00011232,2]
[323746342,1714230646966,-500.0,0.00011232,2]
[323746343,1714230646975,-500.0,0.00011232,2]
[323746344,1714230646984,-1623.27,0.00011232,2]
[323746345,1714230646994,-500.0,0.00011232,2]
[323746346,1714230647003,-2320.26,0.00011232,2]
[323746347,1714230647012,-1761.53,0.00011232,2]
[323746348,1714230647021,-979.87,0.00011232,2]
[323746349,1714230647031,-724.44,0.00011232,2]
[323746350,1714230647040,-1050.6,0.00011232,2]
[323746351,1714230647049,-500.0,0.00011232,2]
[323746352,1714230647058,-4672.72,0.00011232,2]
[323746353,1714230647067,-9176.71,0.00011232,2]
[323746354,1714230647077,-1176.68,0.00011232,2]
[323746355,1714230647086,-500.0,0.00011232,2]
[323746356,1714230647095,-817.41,0.00011232,2]
[323746357,1714230647104,-1475.41,0.00011232,2]
[323746358,1714230647114,-1236.01,0.00011232,2]
[323746359,1714230647123,-791.67,0.00011232,2]
[323746360,1714230647133,-707.05,0.00011232,2]
[323746361,1714230647142,-1383.43,0.00011232,2]
[323746362,1714230647151,-500.0,0.00011232,2]
[323746363,1714230647159,-2228.64,0.00011232,2]
[323746364,1714230647169,-2195.95,0.00011232,2]
[323746365,1714230647178,-500.0,0.00011232,2]
[323746366,1714230647188,-500.0,0.00011232,2]
[323746367,1714230647197,-500.0,0.00011232,2]
[323746368,1714230647207,-2042.29,0.00011232,2]
[323746369,1714230647216,-518.43,0.00011232,2]
[323746370,1714230647225,-628.27,0.00011232,2]
[323746371,1714230647234,-843.11,0.00011232,2]
[323746372,1714230647243,-1155.57,0.00011232,2]
[323746373,1714230647253,-500.0,0.00011232,2]
[323746374,1714230647262,-500.0,0.00011232,2]
[323746375,1714230647271,-500.0,0.00011232,2]
[323746376,1714230647280,-500.0,0.00011232,2]
[323746377,1714230647289,-1620.07,0.00011232,2]
[323746378,1714230647298,-500.0,0.00011232,2]
[323746379,1714230647307,-1392.69,0.00011232,2]
[323746380,1714230647316,-1066.54,0.00011232,2]
[323746381,1714230647325,-500.0,0.00011232,2]
[323746382,1714230647334,-500.0,0.00011232,2]
[323746383,1714230647344,-18683.41,0.00011232,2]
[323746384,1714230647354,-500.0,0.00011232,2]
[323746385,1714230647364,-657.73,0.00011232,2]
[323746386,1714230647374,-1770.89,0.00011232,2]
[323746387,1714230647383,-11354.83,0.00011232,2]
[323746388,1714230647393,-1810.24,0.00011232,2]
[323746389,1714230647402,-500.0,0.00011232,2]
[323746390,1714230647411,-500.0,0.00011232,2]
[323746391,1714230647422,-1007.14,0.00011232,2]
[323746392,1714230647431,-4074.68,0.00011232,2]
[323746393,1714230647441,-500.15,0.00011232,2]
[323746394,1714230647450,-1296.88,0.00011232,2]
[323746395,1714230647460,-1439.29,0.00011232,2]
[323746396,1714230647469,-1085.11,0.00011232,2]
[323746397,1714230647479,-667.96,0.00011232,2]
[323746398,1714230647488,-1211.82,0.00011232,2]
[323746399,1714230647497,-983.47,0.00011232,2]
[323746400,1714230647507,-1353.15,0.00011232,2]
[323746401,1714230647517,-799.85,0.00011232,2]
[323746402,1714230647526,-500.0,0.00011232,2]
[323746403,1714230647535,-915.34,0.00011232,2]
[323746404,1714230647544,-1912.23,0.00011232,2]
[323746405,1714230647553,-500.0,0.00011232,2]
[323746406,1714230647561,-500.0,0.00011232,2]
[323746407,1714230647571,-1318.97,0.00011232,2]
[323746408,1714230647580,-500.0,0.00011232,2]
[323746409,1714230647589,-2307.26,0.00011232,2]
[323746410,1714230647598,-933.61,0.00011232,2]
[323746411,1714230647608,-1382.89,0.00011232,2]
[323746412,1714230647617,-1574.07,0.00011232,2]
[323746413,1714230647627,-850.56,0.00011232,2]
[323746414,1714230647636,-1398.74,0.00011232,2]
[323746415,1714230647646,-1813.16,0.00011232,2]
[323746416,1714230647656,-500.0,0.00011232,2]
[323746417,1714230647666,-608.85,0.00011232,2]
[323746418,1714230647675,-1980.53,0.00011232,2]
[323746419,1714230647686,-2154.5,0.00011232,2]
[323746420,1714230647698,-10803.44,0.00011232,2]
[323746421,1714230647709,-3136.09,0.00011232,2]
[323746422,1714230647719,-500.0,0.00011232,2]
[323746423,1714230647730,-684.58,0.00011232,2]
[323746424,1714230647742,-1295.3,0.00011232,2]
[323746425,1714230647753,-500.0,0.00011232,2]
[323746426,1714230647763,-545.01,0.00011232,2]
[323746427,1714230647773,-2585.82,0.00011232,2]
[323746428,1714230647783,-1604.79,0.00011232,2]
[323746429,1714230647792,-743.91,0.00011232,2]
[323746430,1714230647801,-6377.74,0.00011232,2]
[323746431,1714230647811,-500.0,0.00011232,2]
[323746432,1714230647821,-1229.58,0.00011232,2]
[323746433,1714230647830,-1758.99,0.00011232,2]
[323746434,1714230647841,-1256.81,0.00011232,2]
[323746435,1714230647851,-967.73,0.00011232,2]
[323746436,1714230647861,-588.51,0.00011232,2]
[323746437,1714230647870,-1574.28,0.00011232,2]
[323746438,1714230647879,-1132.5,0.00011232,2]
[323746439,1714230647889,-1877.73,0.00011232,2]
[323746440,1714230647898,-507.43,0.00011232,2]
[323746441,1714230647908,-500.0,0.00011232,2]
[323746442,1714230647917,-500.0,0.00011232,2]
[323746443,1714230647926,-4399.9,0.00011232,2]
[323746444,1714230647936,-838.04,0.00011232,2]
[323746445,1714230647946,-861.63,0.00011232,2]
[323746446,1714230647956,-1739.09,0.00011232,2]
[323746447,1714230647966,-1319.0,0.00011232,2]
[323746448,1714230647975,-1883.64,0.00011232,2]
[323746449,1714230647985,-2418.3,0.00011232,2]
[323746450,1714230647995,-2583.81,0.00011232,2]
[323746451,1714230648004,-2156.66,0.00011232,2]
[323746452,1714230648014,-527.75,0.00011232,2]
[323746453,1714230648023,-3429.44,0.00011232,2]
[323746454,1714230648033,-1020.37,0.00011232,2]
[323746455,1714230648043,-1826.84,0.00011232,2]
[323746456,1714230648052,-4202.85,0.00011232,2]
[323746457,1714230648062,-1420.63,0.00011232,2]
[323746458,1714230648072,-1126.94,0.00011232,2]
[323746459,1714230648081,-500.0,0.00011232,2]
[323746460,1714230648091,-523.36,0.00011232,2]
[323746461,1714230648100,-882.0,0.00011232,2]
[323746462,1714230648110,-2088.61,0.00011232,2]
[323746463,1714230648120,-1382.88,0.00011232,2]
[323746464,1714230648129,-1041.67,0.00011232,2]
[323746465,1714230648139,-602.95,0.00011232,2]
[323746466,1714230648149,-828.15,0.00011232,2]
[323746467,1714230648158,-500.0,0.00011232,2]
[323746468,1714230648167,-1087.01,0.00011232,2]